fUSD/lending_fUSD_20250716
["ID","MTS","AMOUNT","RATE_DAILY","PERIOD"]
[372463878,1752654641800,-163.975848,0.00021917,2]
[372463881,1752654641810,-469.94,0.00021917,2]
[372463884,1752654641820,-460.0,0.00021917,2]
[372463887,1752654641829,-460.0,0.00021917,2]
[372463890,1752654641838,-1520.7,0.00021917,2]
[372463893,1752654641848,-460.0,0.00021917,2]
[372463896,1752654641857,-465.59316935,0.00021917,2]
[372463899,1752654641866,-460.0,0.00021917,2]
[372463902,1752654641876,-151.0,0.00021917,2]
[372463904,1752654641885,-159.92452,0.00021917,2]
[372463906,1752654641895,-226.184216,0.00021917,2]
[372463908,1752654641905,-465.62,0.00021917,2]
[372463911,1752654641914,-226.184216,0.00021917,2]
[372463914,1752654641925,-226.184216,0.00021917,2]
[372463917,1752654641936,-226.184216,0.00021917,2]
[372463920,1752654641946,-226.184216,0.00021917,2]
[372463923,1752654641956,-518.17,0.00021917,5]
[372463926,1752654641966,-460.0,0.00021917,2]
[372463929,1752654641976,-226.184216,0.00021917,2]
[372463932,1752654641985,-780.42,0.00021917,2]
[372463935,1752654641996,-226.184216,0.00021917,2]
[372463937,1752654642006,-463.01584958,0.00021917,2]
[372463939,1752654642016,-226.184216,0.00021917,2]
[372463940,1752654642026,-226.184216,0.00021917,2]
[372463942,1752654642035,-226.184216,0.00021917,2]
[372463944,1752654642045,-460.0,0.00021917,2]
[372463946,1752654642055,-460.0,0.00021917,2]
[372463948,1752654642065,-460.0,0.00021917,2]
[372463950,1752654642075,-460.0,0.00021917,2]
[372463952,1752654642085,-624.96,0.00021917,2]
[372463954,1752654642095,-468.78419582,0.00021917,2]
[372463956,1752654642105,-460.0,0.00021917,2]
[372463958,1752654642115,-761.64,0.00021917,2]
[372463961,1752654642125,-1213.26,0.00021917,2]
[372463964,1752654642134,-460.0,0.00021917,2]
[372463967,1752654642144,-460.0,0.00021917,2]
[372463970,1752654642154,-1261.12,0.00021917,2]
[372463973,1752654642164,-904.75,0.00021917,2]
[372463977,1752654642173,-460.0,0.00021917,2]
[372463980,1752654642183,-461.66093109,0.00021917,2]
[372463983,1752654642194,-1315.7,0.00021917,2]
[372463986,1752654642203,-1191.1,0.00021917,2]
[372463989,1752654642212,-460.0,0.00021917,2]
[372463992,1752654642221,-461.81591101,0.00021917,2]
[372463995,1752654642230,-460.0,0.00021917,2]
[372463998,1752654642240,-460.0,0.00021917,2]
[372464001,1752654642249,-189.88008324,0.00021917,2]
[372464004,1752654642258,-151.0,0.00021917,2]
[372464007,1752654642268,-460.0,0.00021917,2]
[372464010,1752654642278,-151.0,0.00021917,2]
[372464013,1752654642287,-151.0,0.00021917,2]
[372464016,1752654642298,-151.0,0.00021917,2]
[372464019,1752654642308,-245.146463,0.00021917,2]
[372464022,1752654642317,-1279.33,0.00021917,2]
[372464025,1752654642326,-854.27,0.00021917,2]
[372464028,1752654642336,-237.777039,0.00021917,2]
[372464031,1752654642347,-460.0,0.00021917,2]
[372464035,1752654642356,-237.777039,0.00021917,2]
[372464037,1752654642366,-237.777039,0.00021917,2]
[372464040,1752654642375,-250.909974,0.00021917,2]
[372464043,1752654642385,-237.777039,0.00021917,2]
[372464047,1752654642394,-250.909974,0.00021917,2]
[372464050,1752654642404,-237.777039,0.00021917,2]
[372464053,1752654642414,-250.909974,0.00021917,2]
[372464056,1752654642424,-460.0,0.00021917,2]
[372464059,1752654642434,-237.777039,0.00021917,2]
[372464062,1752654642444,-250.909974,0.00021917,2]
[372464065,1752654642456,-250.909974,0.00021917,2]
[372464068,1752654642466,-989.1,0.00021917,2]
[372464071,1752654642475,-237.777039,0.00021917,2]
[372464074,1752654642486,-495.6,0.00021917,2]
[372464077,1752654642498,-460.0,0.00021917,2]
[372464080,1752654642507,-237.777039,0.00021917,2]
[372464083,1752654642517,-237.777039,0.00021917,2]
[372464086,1752654642529,-237.777039,0.00021917,2]
[372464089,1752654642539,-237.777039,0.00021917,2]
[372464092,1752654642549,-237.777039,0.00021917,2]
[372464095,1752654642558,-460.0,0.00021917,2]
[372464097,1752654642568,-546.16,0.00021917,2]
[372464099,1752654642577,-460.0,0.00021917,2]
[372464101,1752654642587,-461.77696716,0.00021917,2]
[372464104,1752654642596,-460.0,0.00021917,2]
[372464107,1752654642606,-770.08,0.00021917,2]
[372464110,1752654642616,-1885.08,0.00021917,2]
[372464113,1752654642625,-500.0,0.00021917,2]
[372464116,1752654642634,-500.0,0.00021917,2]
[372464119,1752654642644,-500.0,0.00021917,2]
[372464122,1752654642653,-500.0,0.00021917,2]
[372464125,1752654642662,-406.9085131,0.00021917,2]
[372464128,1752654642672,-460.0,0.00021917,2]
[372464131,1752654642682,-991.85,0.00021917,2]
[372464134,1752654642692,-766.64,0.00021917,2]
[372464137,1752654642701,-460.0,0.00021917,2]
[372464140,1752654642712,-500.0,0.00021917,2]
[372464143,1752654642721,-460.0,0.00021917,2]
[372464146,1752654642732,-500.0,0.00021917,2]
[372464149,1752654642742,-265.4330037,0.00021917,2]
[372464152,1752654642751,-151.0,0.00021917,2]
[372464155,1752654642761,-460.0,0.00021917,2]
[372464158,1752654642771,-460.0,0.00021917,2]
[372464161,1752654642781,-413.77548305,0.00021917,2]
[372464164,1752654642791,-460.0,0.00021917,2]
[372464167,1752654642800,-460.0,0.00021917,2]
[372464170,1752654642810,-460.0,0.00021917,2]
[372464173,1752654642820,-460.0,0.00021917,2]
[372464176,1752654642829,-460.0,0.00021917,2]
[372464179,1752654642839,-460.0,0.00021917,2]
[372464182,1752654642850,-460.0,0.00021917,2]
[372464185,1752654642860,-935.3,0.00021917,2]
[372464188,1752654642869,-460.0,0.00021917,2]
[372464193,1752654642880,-460.0,0.00021917,2]
[372464196,1752654642890,-460.0,0.00021917,2]
[372464244,1752654643198,-460.0,0.00021917,2]
[372464246,1752654643209,-460.0,0.00021917,2]
[372464249,1752654643219,-460.0,0.00021917,2]
[372464251,1752654643228,-467.83,0.00021917,2]
[372464253,1752654643238,-460.0,0.00021917,2]
[372464255,1752654643248,-585.55,0.00021917,2]
[372464257,1752654643258,-460.0,0.00021917,2]
[372464259,1752654643267,-460.0,0.00021917,2]
[372464261,1752654643277,-151.0,0.00021917,2]
[372464263,1752654643286,-151.0,0.00021917,2]
[372464265,1752654643296,-151.0,0.00021917,2]
[372464267,1752654643305,-151.0,0.00021917,2]
[372464269,1752654643315,-282.236056,0.00021917,2]
[372464271,1752654643324,-460.0,0.00021917,2]
[372464273,1752654643334,-152.31535,0.00021917,2]
[372464275,1752654643344,-880.81,0.00021917,2]
[372464277,1752654643354,-519.02,0.00021917,2]
[372464279,1752654643364,-151.0,0.00021917,2]
[372464281,1752654643373,-151.0,0.00021917,2]
[372464283,1752654643383,-151.0,0.00021917,2]
[372464285,1752654643392,-151.0,0.00021917,2]
[372464287,1752654643401,-186.13946,0.00021917,2]
[372464289,1752654643411,-460.0,0.00021917,2]
[372464291,1752654643421,-1365.14,0.00021917,2]
[372464293,1752654643431,-519.14,0.00021917,2]
[372464295,1752654643441,-460.0,0.00021917,2]
[372464297,1752654643455,-848.88,0.00021917,2]
[372464299,1752654643464,-460.0,0.00021917,2]
[372464301,1752654643474,-666.67,0.00021917,2]
[372464303,1752654643483,-500.0,0.00021917,2]
[372464305,1752654643494,-500.0,0.00021917,2]
[372464307,1752654643504,-460.0,0.00021917,2]
[372464310,1752654643514,-799.33,0.00021917,2]
[372464311,1752654643524,-460.0,0.00021917,2]
[372464314,1752654643534,-500.0,0.00021917,2]
[372464316,1752654643545,-539.05,0.00021917,2]
[372464318,1752654643555,-587.88,0.00021917,2]
[372464320,1752654643564,-875.05,0.00021917,2]
[372464322,1752654643573,-151.0,0.00021917,2]
[372464324,1752654643583,-151.0,0.00021917,2]
[372464326,1752654643592,-151.0,0.00021917,2]
[372464328,1752654643602,-460.0,0.00021917,2]
[372464330,1752654643612,-500.0,0.00021917,2]
[372464332,1752654643622,-500.0,0.00021917,2]
[372464334,1752654643632,-500.0,0.00021917,2]
[372464336,1752654643641,-500.0,0.00021917,2]
[372464338,1752654643651,-152.021686,0.00021917,2]
[372464340,1752654643661,-500.0,0.00021917,2]
[372464342,1752654643670,-500.0,0.00021917,2]
[372464344,1752654643680,-459.9517779,0.00021917,2]
[372464346,1752654643691,-500.0,0.00021917,2]
[372464348,1752654643700,-500.0,0.00021917,2]
[372464350,1752654643710,-607.11076354,0.00021917,2]
[372464352,1752654643720,-460.0,0.00021917,2]
[372464354,1752654643730,-633.71,0.00021917,2]
[372464356,1752654643740,-513.94,0.00021917,2]
[372464358,1752654643750,-460.0,0.00021917,2]
[372464360,1752654643760,-460.0,0.00021917,2]
[372464362,1752654643770,-617.1,0.00021917,2]
[372464364,1752654643779,-460.0,0.00021917,2]
[372464366,1752654643789,-460.0,0.00021917,2]
[372464368,1752654643798,-563.7,0.00021917,2]
[372464370,1752654643808,-461.50544688,0.00021917,2]
[372464372,1752654643818,-460.0,0.00021917,2]
[372464375,1752654643828,-651.99,0.00021917,2]
[372464377,1752654643838,-460.0,0.00021917,2]
[372464379,1752654643849,-507.59,0.00021917,2]
[372464381,1752654643859,-504.56,0.00021917,2]
[372464383,1752654643869,-460.0,0.00021917,2]
[372464385,1752654643879,-460.0,0.00021917,2]
[372464387,1752654643889,-957.21,0.00021917,2]
[372464389,1752654643899,-461.41048171,0.00021917,2]
[372464391,1752654643909,-460.0,0.00021917,2]
[372464393,1752654643919,-460.0,0.00021917,2]
[372464395,1752654643929,-460.0,0.00021917,2]
[372464397,1752654643941,-785.38,0.00021917,2]
[372464399,1752654643950,-460.0,0.00021917,2]
[372464400,1752654643961,-460.0,0.00021917,2]
[372464403,1752654643973,-151.0,0.00021917,2]
[372464405,1752654643983,-151.0,0.00021917,2]
[372464407,1752654643995,-151.0,0.00021917,2]
[372464408,1752654644006,-151.0,0.00021917,2]
[372464411,1752654644017,-460.0,0.00021917,2]
[372464413,1752654644029,-151.0,0.00021917,2]
[372464415,1752654644039,-151.0,0.00021917,2]
[372464417,1752654644051,-460.0,0.00021917,2]
[372464419,1752654644061,-560.33,0.00021917,2]
[372464421,1752654644071,-460.0,0.00021917,2]
[372464423,1752654644081,-548.14,0.00021917,2]
[372464425,1752654644091,-866.83,0.00021917,2]
[372464427,1752654644100,-478.37,0.00021917,2]
[372464429,1752654644110,-772.5,0.00021917,2]
[372464431,1752654644120,-460.0,0.00021917,2]
[372464433,1752654644130,-698.26,0.00021917,2]
[372464435,1752654644140,-460.0,0.00021917,2]
[372464437,1752654644150,-460.0,0.00021917,2]
[372464439,1752654644160,-151.0,0.00021917,2]
[372464441,1752654644170,-460.0,0.00021917,2]
[372464443,1752654644180,-151.0,0.00021917,2]
[372464445,1752654644193,-151.0,0.00021917,2]
[372464447,1752654644203,-289.662982,0.00021917,2]
[372464449,1752654644213,-224.02807,0.00021917,2]
[372464451,1752654644223,-224.02807,0.00021917,2]
[372464453,1752654644233,-224.02807,0.00021917,2]
[372464455,1752654644242,-224.02807,0.00021917,2]
[372464457,1752654644252,-540.0,0.00021917,2]
[372464459,1752654644261,-224.02807,0.00021917,2]
[372464461,1752654644271,-224.02807,0.00021917,2]
[372464463,1752654644281,-224.02807,0.00021917,2]
[372464465,1752654644291,-224.02807,0.00021917,2]
[372464467,1752654644300,-224.02807,0.00021917,2]
[372464469,1752654644310,-2355.65,0.00021917,2]
[372464471,1752654644319,-460.0,0.00021917,2]
[372464473,1752654644329,-436.84232407,0.00021917,2]
[372464475,1752654644339,-460.0,0.00021917,2]
[372464477,1752654644348,-460.0,0.00021917,2]
[372464479,1752654644358,-2035.91,0.00021917,2]
[372464481,1752654644367,-550.13,0.00021917,2]
[372464483,1752654644376,-460.0,0.00021917,2]
[372464485,1752654644386,-151.0,0.00021917,2]
[372464487,1752654644395,-151.0,0.00021917,2]
[372464489,1752654644404,-151.0,0.00021917,2]
[372464491,1752654644414,-1351.02,0.00021917,2]
[372464493,1752654644424,-151.0,0.00021917,2]
[372464495,1752654644433,-151.0,0.00021917,2]
[372464497,1752654644443,-151.0,0.00021917,2]
[372464498,1752654644456,-460.0,0.00021917,2]
[372464499,1752654644465,-156.585107,0.00021917,2]
[372464500,1752654644474,-156.585107,0.00021917,2]
[372464501,1752654644483,-460.0,0.00021917,2]
[372464502,1752654644494,-156.585107,0.00021917,2]
[372464503,1752654644503,-156.585107,0.00021917,2]
[372464504,1752654644513,-156.585107,0.00021917,2]
[372464505,1752654644524,-156.585107,0.00021917,2]
[372464506,1752654644534,-156.585107,0.00021917,2]
[372464508,1752654644544,-156.585107,0.00021917,2]
[372464510,1752654644554,-156.585107,0.00021917,2]
[372464513,1752654644564,-522.83350123,0.00021917,2]
[372464515,1752654644573,-156.585107,0.00021917,2]
[372464517,1752654644583,-156.585107,0.00021917,2]
[372464519,1752654644594,-156.585107,0.00021917,2]
[372464521,1752654644604,-462.03131094,0.00021917,2]
[372464523,1752654644614,-156.044223,0.00021917,2]
[372464525,1752654644623,-2954.5,0.00021917,2]
[372464527,1752654644633,-1690.04,0.00021917,2]
[372464529,1752654644643,-462.03841847,0.00021917,2]
[372464531,1752654644653,-460.0,0.00021917,2]
[372464533,1752654644662,-617.76,0.00021917,2]
[372464535,1752654644671,-151.0,0.00021917,2]
[372464537,1752654644682,-151.0,0.00021917,2]
[372464539,1752654644692,-151.0,0.00021917,2]
[372464541,1752654644702,-460.0,0.00021917,2]
[372464543,1752654644711,-460.0,0.00021917,2]
[372464545,1752654644721,-1351.51,0.00021917,2]
[372464547,1752654644730,-430.91846146,0.00021917,2]
[372464549,1752654644740,-2779.83,0.00021917,2]
[372464551,1752654644750,-460.0,0.00021917,2]
[372464553,1752654644759,-460.0,0.00021917,2]
[372464555,1752654644768,-526.16404302,0.00021917,2]
[372464557,1752654644777,-598.41,0.00021917,2]
[372464560,1752654644787,-460.0,0.00021917,2]
[372464562,1752654644796,-1353.7,0.00021917,2]
[372464565,1752654644806,-460.41,0.00021917,2]
[372464568,1752654644816,-461.84973853,0.00021917,2]
[372464571,1752654644825,-467.14804141,0.00021917,2]
[372464574,1752654644835,-948.86,0.00021917,2]
[372464578,1752654644846,-192.77679141,0.00021917,2]
[372464580,1752654644856,-460.0,0.00021917,2]
[372464581,1752654644866,-460.0,0.00021917,2]
[372464584,1752654644876,-270.62328876,0.00021917,2]
[372464587,1752654644886,-167.050916,0.00021917,2]
[372464591,1752654644899,-151.532438,0.00021917,2]
[372464594,1752654644911,-151.0,0.00021917,2]
[372464597,1752654644921,-151.0,0.00021917,2]
[372464600,1752654644931,-151.0,0.00021917,2]
[372464603,1752654644943,-1694.76,0.00021917,2]
[372464606,1752654644954,-151.0,0.00021917,2]
[372464609,1752654644964,-151.0,0.00021917,2]
[372464612,1752654644974,-463.7399888,0.00021917,2]
[372464615,1752654644984,-3247.08,0.00021917,2]
[372464618,1752654644994,-460.0,0.00021917,2]
[372464621,1752654645004,-460.0,0.00021917,2]
[372464624,1752654645014,-1794.0,0.00021917,2]
[372464627,1752654645025,-1588.15,0.00021917,2]
[372464630,1752654645035,-331.86082138,0.00021917,2]
[372464633,1752654645046,-181.944592,0.00021917,2]
[372464636,1752654645056,-181.944592,0.00021917,2]
[372464639,1752654645067,-181.944592,0.00021917,2]
[372464642,1752654645077,-181.944592,0.00021917,2]
[372464645,1752654645088,-181.944592,0.00021917,2]
[372464649,1752654645098,-181.944592,0.00021917,2]
[372464651,1752654645109,-181.944592,0.00021917,2]
[372464654,1752654645118,-181.944592,0.00021917,2]
[372464657,1752654645129,-181.944592,0.00021917,2]
[372464660,1752654645139,-181.944592,0.00021917,2]
[372464663,1752654645149,-181.944592,0.00021917,2]
[372464664,1752654645159,-181.944592,0.00021917,2]
[372464666,1752654645169,-151.0,0.00021917,2]
[372464669,1752654645178,-623.92,0.00021917,2]
[372464671,1752654645189,-151.253959,0.00021917,2]
[372464673,1752654645198,-460.0,0.00021917,2]
[372464675,1752654645208,-460.0,0.00021917,2]
[372464677,1752654645217,-460.0,0.00021917,2]
[372464679,1752654645226,-151.0,0.00021917,2]
[372464681,1752654645236,-151.0,0.00021917,2]
[372464683,1752654645245,-151.0,0.00021917,2]
[372464685,1752654645255,-460.0,0.00021917,2]
[372464687,1752654645264,-151.0,0.00021917,2]
[372464689,1752654645273,-151.0,0.00021917,2]
[372464691,1752654645282,-460.0,0.00021917,2]
[372464693,1752654645292,-196.041183,0.00021917,2]
[372464695,1752654645302,-275.280798,0.00021917,2]
[372464697,1752654645311,-275.280798,0.00021917,2]
[372464699,1752654645321,-275.280798,0.00021917,2]
[372464701,1752654645330,-275.280798,0.00021917,2]
[372464703,1752654645340,-275.280798,0.00021917,2]
[372464706,1752654645350,-460.0,0.00021917,2]
[372464708,1752654645360,-275.280798,0.00021917,2]
[372464710,1752654645369,-275.280798,0.00021917,2]
[372464712,1752654645379,-275.280798,0.00021917,2]
[372464714,1752654645388,-275.280798,0.00021917,2]
[372464716,1752654645398,-275.280798,0.00021917,2]
[372464718,1752654645408,-1738.58,0.00021917,2]
[372464720,1752654645417,-460.0,0.00021917,2]
[372464722,1752654645427,-460.05273456,0.00021917,2]
[372464724,1752654645437,-460.0,0.00021917,2]
[372464726,1752654645448,-460.0,0.00021917,2]
[372464728,1752654645460,-151.0,0.00021917,2]
[372464730,1752654645470,-293.187796,0.00021917,2]
[372464732,1752654645479,-2628.42,0.00021917,2]
[372464734,1752654645490,-460.0,0.00021917,2]
[372464736,1752654645500,-460.0,0.00021917,2]
[372464738,1752654645509,-460.0,0.00021917,2]
[372464740,1752654645520,-257.22585,0.00021917,2]
[372464742,1752654645530,-850.98,0.00021917,2]
[372464744,1752654645541,-460.0,0.00021917,2]
[372464746,1752654645550,-460.0,0.00021917,2]
[372464748,1752654645560,-760.885495,0.00021917,2]
[372464750,1752654645570,-760.885495,0.00021917,2]
[372464763,1752654645579,-760.885495,0.00021917,2]
[372464765,1752654645688,-760.885495,0.00021917,2]
[372464767,1752654645699,-151.0,0.00021917,2]
[372464769,1752654645708,-151.0,0.00021917,2]
[372464771,1752654645717,-760.885495,0.00021917,2]
[372464773,1752654645727,-460.0,0.00021917,2]
[372464775,1752654645736,-151.0,0.00021917,2]
[372464777,1752654645745,-760.885495,0.00021917,2]
[372464779,1752654645755,-151.0,0.00021917,2]
[372464781,1752654645765,-151.0,0.00021917,2]
[372464783,1752654645774,-151.0,0.00021917,2]
[372464785,1752654645784,-151.0,0.00021917,2]
[372464787,1752654645794,-151.0,0.00021917,2]
[372464789,1752654645803,-151.0,0.00021917,2]
[372464791,1752654645812,-151.0,0.00021917,2]
[372464793,1752654645821,-151.0,0.00021917,2]
[372464795,1752654645830,-151.0,0.00021917,2]
[372464797,1752654645839,-151.0,0.00021917,2]
[372464799,1752654645848,-460.0,0.00021917,2]
[372464801,1752654645858,-151.0,0.00021917,2]
[372464803,1752654645867,-151.0,0.00021917,2]
[372464805,1752654645877,-151.0,0.00021917,2]
[372464807,1752654645887,-151.0,0.00021917,2]
[372464809,1752654645896,-151.0,0.00021917,2]
[372464811,1752654645905,-1801.78,0.00021917,2]
[372464813,1752654645914,-217.089749,0.00021917,2]
[372464815,1752654645923,-151.0,0.00021917,2]
[372464817,1752654645933,-151.0,0.00021917,2]
[372464819,1752654645943,-460.0,0.00021917,2]
[372464821,1752654645952,-3128.77,0.00021917,2]
[372464823,1752654645961,-3171.39,0.00021917,2]
[372464825,1752654645971,-493.90489709,0.00021917,2]
[372464827,1752654645983,-460.0,0.00021917,2]
[372464829,1752654645993,-150.0,0.00021917,2]
[372464831,1752654646003,-460.0,0.00021917,2]
[372464833,1752654646013,-522.71,0.00021917,2]
[372464835,1752654646022,-151.992021,0.00021917,2]
[372464837,1752654646034,-150.0,0.00021917,2]
[372464839,1752654646043,-150.0,0.00021917,2]
[372464841,1752654646053,-150.0,0.00021917,2]
[372464843,1752654646062,-460.0,0.00021917,2]
[372464845,1752654646071,-151.0,0.00021917,2]
[372464847,1752654646081,-460.0,0.00021917,2]
[372464849,1752654646090,-151.0,0.00021917,2]
[372464851,1752654646100,-151.0,0.00021917,2]
[372464853,1752654646109,-460.0,0.00021917,2]
[372464855,1752654646118,-151.0,0.00021917,2]
[372464857,1752654646128,-151.0,0.00021917,2]
[372464859,1752654646137,-3134.0,0.00021917,2]
[372464861,1752654646147,-150.923723,0.00021917,2]
[372464863,1752654646156,-151.0,0.00021917,2]
[372464865,1752654646165,-151.0,0.00021917,2]
[372464867,1752654646175,-453.41906057,0.00021917,2]
[372464869,1752654646184,-237.754216,0.00021917,2]
[372464871,1752654646194,-1003.57,0.00021917,2]
[372464873,1752654646204,-460.0,0.00021917,2]
[372464875,1752654646213,-460.0,0.00021917,2]
[372464877,1752654646222,-460.0,0.00021917,2]
[372464879,1752654646231,-460.0,0.00021917,2]
[372464881,1752654646241,-151.0,0.00021917,2]
[372464883,1752654646250,-460.0,0.00021917,2]
[372464885,1752654646259,-460.0,0.00021917,2]
[372464887,1752654646268,-460.0,0.00021917,2]
[372464889,1752654646278,-1001.11,0.00021917,2]
[372464891,1752654646287,-1258.33853,0.00021917,2]
[372464893,1752654646297,-1258.33853,0.00021917,2]
[372464895,1752654646306,-1258.33853,0.00021917,2]
[372464897,1752654646316,-460.0,0.00021917,2]
[372464899,1752654646325,-1258.33853,0.00021917,2]
[372464901,1752654646334,-1258.33853,0.00021917,2]
[372464903,1752654646344,-152.839817,0.00021917,2]
[372464905,1752654646353,-1258.33853,0.00021917,2]
[372464907,1752654646362,-158.061985,0.00021917,2]
[372464909,1752654646372,-1258.33853,0.00021917,2]
[372464911,1752654646381,-3230.590099,0.00021917,2]
[372464913,1752654646391,-460.0,0.00021917,2]
[372464915,1752654646400,-1258.33853,0.00021917,2]
[372464917,1752654646409,-1258.33853,0.00021917,2]
[372464919,1752654646418,-1258.33853,0.00021917,2]
[372464921,1752654646427,-1258.33853,0.00021917,2]
[372464923,1752654646436,-460.0,0.00021917,2]
[372464925,1752654646448,-151.0,0.00021917,2]
[372464927,1752654646460,-1258.33853,0.00021917,2]
[372464930,1752654646470,-3611.769234,0.00021917,2]
[372464932,1752654646480,-801.06,0.00021917,2]
[372464933,1752654646490,-206.648635,0.00021917,2]
[372464936,1752654646500,-460.0,0.00021917,2]
[372464938,1752654646510,-3735.793257,0.00021917,2]
[372464940,1752654646519,-461.76599591,0.00021917,2]
[372464942,1752654646530,-460.0,0.00021917,2]
[372464944,1752654646540,-460.0,0.00021917,2]
[372464946,1752654646548,-252.14489683,0.00021917,2]
[372464948,1752654646557,-487.39760669,0.00021917,2]
[372464950,1752654646564,-460.0,0.00021917,2]
[372464952,1752654646573,-460.0,0.00021917,2]
[372464954,1752654646582,-475.52,0.00021917,2]
[372464956,1752654646591,-460.0,0.00021917,2]
[372464958,1752654646600,-460.0,0.00021917,2]
[372464960,1752654646610,-460.0,0.00021917,2]
[372464962,1752654646620,-1222.87,0.00021917,2]
[372464964,1752654646629,-460.0,0.00021917,2]
[372464966,1752654646639,-488.34,0.00021917,2]
[372464968,1752654646648,-460.0,0.00021917,2]
[372464970,1752654646657,-460.0,0.00021917,2]
[372464971,1752654646666,-151.0,0.00021917,2]
[372464972,1752654646676,-462.31976494,0.00021917,2]
[372464973,1752654646685,-151.0,0.00021917,2]
[372464974,1752654646694,-151.0,0.00021917,2]
[372464975,1752654646703,-151.0,0.00021917,2]
[372464976,1752654646713,-151.0,0.00021917,2]
[372464977,1752654646722,-151.0,0.00021917,2]
[372464978,1752654646731,-151.0,0.00021917,2]
[372464979,1752654646740,-151.0,0.00021917,2]
[372464981,1752654646750,-151.0,0.00021917,2]
[372464983,1752654646759,-741.72,0.00021917,2]
[372464985,1752654646769,-151.0,0.00021917,2]
[372464987,1752654646779,-460.0,0.00021917,2]
[372464989,1752654646788,-173.259868,0.00021917,2]
[372464991,1752654646798,-494.66986843,0.00021917,2]
[372464993,1752654646807,-460.0,0.00021917,2]
[372464995,1752654646816,-1013.76,0.00021917,2]
[372464997,1752654646826,-462.4035856,0.00021917,2]
[372464999,1752654646835,-460.0,0.00021917,2]
[372465001,1752654646845,-460.0,0.00021917,2]
[372465003,1752654646855,-460.0,0.00021917,2]
[372465005,1752654646864,-535.17788233,0.00021917,2]
[372465007,1752654646873,-1001.58,0.00021917,2]
[372465009,1752654646882,-494.26712565,0.00021917,2]
[372465011,1752654646891,-622.77,0.00021917,2]
[372465013,1752654646901,-151.0,0.00021917,2]
[372465015,1752654646911,-151.0,0.00021917,2]
[372465017,1752654646923,-250.0,0.00021917,2]
[372465019,1752654646932,-151.0,0.00021917,2]
[372465021,1752654646942,-151.0,0.00021917,2]
[372465023,1752654646951,-151.0,0.00021917,2]
[372465025,1752654646960,-151.0,0.00021917,2]
[372465027,1752654646970,-151.0,0.00021917,2]
[372465029,1752654646979,-151.0,0.00021917,2]
[372465031,1752654646988,-460.0,0.00021917,2]
[372465033,1752654646997,-460.0,0.00021917,2]
[372465035,1752654647007,-151.0,0.00021917,2]
[372465037,1752654647016,-151.0,0.00021917,2]
[372465038,1752654647025,-173.219293,0.00021917,2]
[372465041,1752654647035,-460.0,0.00021917,2]
[372465043,1752654647046,-460.0,0.00021917,2]
[372465045,1752654647057,-460.0,0.00021917,2]
[372465047,1752654647070,-1052.4,0.00021917,2]
[372465049,1752654647081,-460.0,0.00021917,2]
[372465051,1752654647090,-460.0,0.00021917,2]